Workbook

Sheet Mittelhilfstabelle
A2: Stunde | B2: Wind | C2: Luftfeuchtigkeit | D2: Luftdruck | E2: Taupunkttemperatur | F2: Bewölkung | H2: Stunde | I2: Wind | J2: Luftfeuchtigkeit | K2: Luftdruck | L2: Taupunkttemperatur | M2: Bewölkung
A3: 00 | B3: 2 | C3: 88 | D3: 1007.8 | E3: 2.7 | F3: 8 | H3: 00 | I3: 2 | J3: 80 | K3: 1025 | L3: 1.2 | M3: 4
A4: 01 | B4: 2 | C4: 90 | D4: 1007.5 | E4: 2.9 | F4: 8 | H4: 01 | I4: 1 | J4: 82 | K4: 1025.7 | L4: 0.9 | M4: 3
A5: 02 | B5: 1 | C5: 90 | D5: 1007.9 | E5: 2.9 | F5: 8 | H5: 02 | I5: 1 | J5: 85 | K5: 1026.6 | L5: 0.1 | M5: 1
A6: 03 | B6: 1 | C6: 92 | D6: 1008.3 | E6: 3.1 | F6: 8 | H6: 03 | I6: 0 | J6: 88 | K6: 1027.2 | L6: -0.2 | M6: 1
A7: 04 | B7: 1 | C7: 94 | D7: 1008.1 | E7: 3.1 | F7: 8 | H7: 04 | I7: 1 | J7: 89 | K7: 1027.6 | L7: -0.1 | M7: 2
A8: 05 | B8: 2 | C8: 94 | D8: 1008.4 | E8: 3.1 | F8: 8 | H8: 05 | I8: 1 | J8: 89 | K8: 1028 | L8: -0.6 | M8: 1
A9: 06 | B9: 2 | C9: 92 | D9: 1009.6 | E9: 3.1 | F9: 8 | H9: 06 | I9: 1 | J9: 90 | K9: 1028.7 | L9: -1 | M9: 1
A10: 07 | B10: 1 | C10: 92 | D10: 1010.6 | E10: 3.4 | F10: 8 | H10: 07 | I10: 1 | J10: 90 | K10: 1028.8 | L10: -0.5 | M10: 1
A11: 08 | B11: 2 | C11: 88 | D11: 1013 | E11: 3.7 | F11: 8 | H11: 08 | I11: 1 | J11: 90 | K11: 1029.2 | L11: -1.7 | M11: 1
A12: 09 | B12: 2 | C12: 88 | D12: 1014.2 | E12: 3.3 | F12: 7 | H12: 09 | I12: 1 | J12: 92 | K12: 1029.4 | L12: -1.6 | M12: 0
A13: 10 | B13: 2 | C13: 84 | D13: 1015.6 | E13: 3.3 | F13: 7 | H13: 10 | I13: 1 | J13: 90 | K13: 1029.6 | L13: -1.2 | M13: 0
A14: 11 | B14: 3 | C14: 76 | D14: 1016.5 | E14: 2.6 | F14: 7 | H14: 11 | I14: 1 | J14: 92 | K14: 1029.8 | L14: -0.4 | M14: 0
A15: 12 | B15: 2 | C15: 71 | D15: 1016.9 | E15: 2.2 | F15: 6 | H15: 12 | I15: 1 | J15: 85 | K15: 1029 | L15: 1.5 | M15: 0
A16: 13 | B16: 3 | C16: 68 | D16: 1017 | E16: 2.4 | F16: 6 | H16: 13 | I16: 2 | J16: 68 | K16: 1028.2 | L16: 0.5 | M16: 0
A17: 14 | B17: 3 | C17: 70 | D17: 1017.4 | E17: 2.1 | F17: 5 | H17: 14 | I17: 2 | J17: 69 | K17: 1027.6 | L17: 0 | M17: 0
A18: 15 | B18: 2 | C18: 72 | D18: 1018.1 | E18: 2.1 | F18: 6 | H18: 15 | I18: 2 | J18: 76 | K18: 1027.6 | L18: 0 | M18: 0
A19: 16 | B19: 2 | C19: 71 | D19: 1019 | E19: 1.5 | F19: 5 | H19: 16 | I19: 2 | J19: 78 | K19: 1027.9 | L19: -0.8 | M19: 0
A20: 17 | B20: 1 | C20: 75 | D20: 1020.2 | E20: 1.6 | F20: 4 | H20: 17 | I20: 2 | J20: 84 | K20: 1028 | L20: -1.2 | M20: 0
A21: 18 | B21: 1 | C21: 75 | D21: 1021 | E21: 1.4 | F21: 4 | H21: 18 | I21: 2 | J21: 88 | K21: 1027.7 | L21: -1 | M21: 0
A22: 19 | B22: 2 | C22: 76 | D22: 1021.6 | E22: 1 | F22: 3 | H22: 19 | I22: 2 | J22: 89 | K22: 1027.4 | L22: -1.4 | M22: 0
A23: 20 | B23: 3 | C23: 78 | D23: 1022 | E23: 1 | F23: 2 | H23: 20 | I23: 1 | J23: 90 | K23: 1027.1 | L23: -1.9 | M23: 0
A24: 21 | B24: 3 | C24: 78 | D24: 1022.6 | E24: 0.9 | F24: 1 | H24: 21 | I24: 2 | J24: 91 | K24: 1026.9 | L24: -1.6 | M24: 0
A25: 22 | B25: 3 | C25: 77 | D25: 1023.8 | E25: 1 | F25: 1 | H25: 22 | I25: 1 | J25: 91 | K25: 1027.1 | L25: -1.8 | M25: 0
A26: 23 | B26: 2 | C26: 80 | D26: 1024.6 | E26: 1.5 | F26: 3 | H26: 23 | I26: 1 | J26: 90 | K26: 1027.1 | L26: -1.9 | M26: 1
A27: Mittel | B27: =ROUND(AVERAGE(B3:B26),1) -> 2 | C27: =ROUND(AVERAGE(C3:C26),1) -> 81.6 | D27: =ROUND(AVERAGE(D3:D26),1) -> 1015.5 | E27: =AVERAGE(E3:E26) -> 2.329166667 | F27: =ROUND(AVERAGE(F3:F26),1) -> 5.8 | H27: Mittel | I27: =ROUND(AVERAGE(I3:I26),1) -> 1.3 | J27: =ROUND(AVERAGE(J3:J26),1) -> 85.7 | K27: =ROUND(AVERAGE(K3:K26),1) -> 1027.8 | L27: =AVERAGE(L3:L26) -> -0.6125 | M27: =ROUND(AVERAGE(M3:M26),1) -> 0.7
E29: 2013-12-29 | L29: 2013-12-30
A32: Stunde | B32: Wind | C32: Luftfeuchtigkeit | D32: Luftdruck | E32: Taupunkttemperatur | F32: Bewölkung | H32: Stunde | I32: Wind | J32: Luftfeuchtigkeit | K32: Luftdruck | L32: Taupunkttemperatur | M32: Bewölkung
A33: 00 | B33: 1 | C33: 91 | D33: 1027.2 | E33: -2.1 | F33: 1 | H33: 00 | I33: 2 | J33: 81 | K33: 1007.3 | L33: 1.5 | M33: 1
A34: 01 | B34: 2 | C34: 92 | D34: 1026.9 | E34: -2.2 | F34: 1 | H34: 01 | I34: 3 | J34: 79 | K34: 1006.9 | L34: 1.3 | M34: 0
A35: 02 | B35: 2 | C35: 92 | D35: 1026.7 | E35: -2.3 | F35: 1 | H35: 02 | I35: 4 | J35: 74 | K35: 1007.2 | L35: 1.3 | M35: 0
A36: 03 | B36: 2 | C36: 92 | D36: 1026.4 | E36: -2.6 | F36: 1 | H36: 03 | I36: 3 | J36: 76 | K36: 1007.1 | L36: 1.1 | M36: 0
A37: 04 | B37: 2 | C37: 93 | D37: 1025.7 | E37: -2.6 | F37: 1 | H37: 04 | I37: 2 | J37: 78 | K37: 1006.7 | L37: 1.2 | M37: 2
A38: 05 | B38: 2 | C38: 93 | D38: 1025.5 | E38: -3 | F38: 1 | H38: 05 | I38: 2 | J38: 78 | K38: 1006.6 | L38: 1 | M38: 1
A39: 06 | B39: 2 | C39: 94 | D39: 1025.1 | E39: -3.1 | F39: 1 | H39: 06 | I39: 2 | J39: 79 | K39: 1005.8 | L39: 1.2 | M39: 6
A40: 07 | B40: 2 | C40: 94 | D40: 1025.1 | E40: -2.9 | F40: 1 | H40: 07 | I40: 3 | J40: 72 | K40: 1005.6 | L40: 1.4 | M40: 5
A41: 08 | B41: 2 | C41: 95 | D41: 1024.4 | E41: -2.7 | F41: 5 | H41: 08 | I41: 2 | J41: 76 | K41: 1005.6 | L41: 1.1 | M41: 7
A42: 09 | B42: 2 | C42: 95 | D42: 1024.5 | E42: -2.1 | F42: 6 | H42: 09 | I42: 3 | J42: 81 | K42: 1006 | L42: 1.6 | M42: 7
A43: 10 | B43: 1 | C43: 92 | D43: 1024.2 | E43: -0.9 | F43: 7 | H43: 10 | I43: 3 | J43: 84 | K43: 1006.4 | L43: 2.1 | M43: 8
A44: 11 | B44: 1 | C44: 87 | D44: 1023.6 | E44: 0.6 | F44: 7 | H44: 11 | I44: 4 | J44: 86 | K44: 1005.6 | L44: 2.5 | M44: 8
A45: 12 | B45: 2 | C45: 82 | D45: 1022.5 | E45: 1.4 | F45: 7 | H45: 12 | I45: 3 | J45: 86 | K45: 1005.2 | L45: 2.6 | M45: 8
A46: 13 | B46: 2 | C46: 80 | D46: 1022.2 | E46: 1.2 | F46: 6 | H46: 13 | I46: 2 | J46: 87 | K46: 1005.7 | L46: 2.7 | M46: 8
A47: 14 | B47: 3 | C47: 84 | D47: 1021.7 | E47: 0.7 | F47: 4 | H47: 14 | I47: 3 | J47: 84 | K47: 1005.4 | L47: 2.5 | M47: 8
A48: 15 | B48: 3 | C48: 87 | D48: 1021.4 | E48: 0.1 | F48: 2 | H48: 15 | I48: 2 | J48: 84 | K48: 1005.7 | L48: 2.8 | M48: 7
A49: 16 | B49: 2 | C49: 89 | D49: 1021.2 | E49: -0.7 | F49: 2 | H49: 16 | I49: 2 | J49: 79 | K49: 1005.8 | L49: 2.5 | M49: 7
A50: 17 | B50: 2 | C50: 90 | D50: 1020.9 | E50: -1.2 | F50: 1 | H50: 17 | I50: 3 | J50: 80 | K50: 1005.8 | L50: 2.3 | M50: 7
A51: 18 | B51: 2 | C51: 91 | D51: 1020.4 | E51: -1.7 | F51: 1 | H51: 18 | I51: 3 | J51: 78 | K51: 1006.1 | L51: 2 | M51: 8
A52: 19 | B52: 2 | C52: 93 | D52: 1019.7 | E52: -1.8 | F52: 0 | H52: 19 | I52: 2 | J52: 78 | K52: 1006.3 | L52: 1.9 | M52: 8
A53: 20 | B53: 2 | C53: 93 | D53: 1019.4 | E53: -1.7 | F53: 0 | H53: 20 | I53: 2 | J53: 81 | K53: 1006.6 | L53: 1.8 | M53: 8
A54: 21 | B54: 2 | C54: 92 | D54: 1019.1 | E54: -1.3 | F54: 0 | H54: 21 | I54: 2 | J54: 83 | K54: 1006.7 | L54: 1.9 | M54: 7
A55: 22 | B55: 2 | C55: 92 | D55: 1018.7 | E55: -1.6 | F55: 0 | H55: 22 | I55: 1 | J55: 85 | K55: 1007.3 | L55: 1.9 | M55: 7
A56: 23 | B56: 2 | C56: 92 | D56: 1018.5 | E56: -1.3 | F56: 0 | H56: 23 | I56: 1 | J56: 88 | K56: 1007.6 | L56: 2.6 | M56: 7
A57: Mittel | B57: =ROUND(AVERAGE(B33:B56),1) -> 2 | C57: =ROUND(AVERAGE(C33:C56),1) -> 90.6 | D57: =ROUND(AVERAGE(D33:D56),1) -> 1023 | E57: =ROUND(AVERAGE(E33:E56),1) -> -1.4 | F57: =ROUND(AVERAGE(F33:F56),1) -> 2.3 | H57: Mittel | I57: =ROUND(AVERAGE(I33:I56),1) -> 2.5 | J57: =ROUND(AVERAGE(J33:J56),1) -> 80.7 | K57: =ROUND(AVERAGE(K33:K56),1) -> 1006.3 | L57: =ROUND(AVERAGE(L33:L56),1) -> 1.9 | M57: =ROUND(AVERAGE(M33:M56),1) -> 5.6
E59: 2013-12-31 | L59: 2013-12-28

Sheet Kurztabelle
A2: Wetterwarte: Köttewitz | L2: Monat: | M2: Dezember | Y2: Jahr: | Z2: 2013
A4: Dat. | B4: TTT | C4: TxTx | D4: TnTn | E4: Tg | F4: Umin. | G4: UU | H4: NN | I4: RRRR | J4: Art | L4: sss | M4: PPPP | N4: eee | O4: fff | R4: Tage mit | V4: fk | W4: Summe
J5: * | O5: Bft | P5: SS | Q5: Art ( D ) | R5: RR | S5: Ge | T5: Bf6 | U5: Bf8 | V5: Bft | W5: Gewitter
A6: 01. | B6: 4.8 | C6: 6.8 | D6: 3.2 | E6: 2.2 | F6: 80 | G6: 88 | H6: 7.5 | I6: 0.2 | J6: R | L6: 0.2 | M6: 1026.2 | N6: 3 | O6: 3 | R6: 1 | V6: 5 | AA6: max >=30,0°C | AB6: max >=25,0°C | AC6: max <0,0°C | AE6: RR >=0,1 mm | AF6: RR >=1,0 mm | AG6: RR >=3,0 mm | AH6: RR >=10,0 mm
A7: 02. | B7: 3.2 | C7: 5.8 | D7: -1.7 | E7: -3.3 | F7: 76 | G7: 89 | H7: 4.8 | I7: . | L7: 1.3 | M7: 1034.5 | N7: 1.8 | O7: 1 | V7: 3 | AA7: =COUNTIF(C6:C15,">=30") -> 0 | AB7: =COUNTIF(C6:C15,">=25") -> 0 | AC7: =COUNTIF(C6:C15,"<0") -> 0 | AE7: =COUNTIF(I6:I15,">=0,1") -> 8 | AF7: =COUNTIF(I6:I15,">=1") -> 5 | AG7: =COUNTIF(I6:I15,">=3") -> 4 | AH7: =COUNTIF(I6:I15,">=10") -> 0
A8: 03. | B8: 0.1 | C8: 4.9 | D8: -2.2 | E8: -3.9 | F8: 68 | G8: 86 | H8: 4.9 | I8: . | L8: 0.8 | M8: 1031 | N8: -2.1 | O8: 2 | V8: 4 | AA8: =COUNTIF(C18:C27,">=30") -> 0 | AB8: =COUNTIF(C18:C27,">=25") -> 0 | AC8: =COUNTIF(C18:C27,"<0") -> 0 | AE8: =COUNTIF(I18:I27,">=0,1") -> 3 | AF8: =COUNTIF(I18:I27,">=1") -> 1 | AG8: =COUNTIF(I18:I27,">=3") -> 0 | AH8: =COUNTIF(I18:I27,">=10") -> 0
A9: 04. | B9: -0.4 | C9: 3.2 | D9: -4.2 | E9: -5 | F9: 85 | G9: 91 | H9: 7.2 | I9: 3 | J9: R | L9: 0.3 | M9: 1024.2 | N9: -1.9 | O9: 2 | R9: 1 | T9: 1 | V9: 6 | AA9: =COUNTIF(C30:C40,">=30") -> 0 | AB9: =COUNTIF(C30:C40,">=25") -> 0 | AC9: =COUNTIF(C30:C40,"<0") -> 0 | AE9: =COUNTIF(I30:I40,">=0,1") -> 3 | AF9: =COUNTIF(I30:I40,">=1") -> 0 | AG9: =COUNTIF(I30:I40,">=3") -> 0 | AH9: =COUNTIF(I30:I40,">=10") -> 0
A10: 05. | B10: 3.4 | C10: 6.4 | D10: 1.8 | E10: 0.6 | F10: 51 | G10: 81 | H10: 7.4 | I10: 5.6 | J10: R;G | L10: . | M10: 1016.7 | N10: 0.4 | O10: 3 | R10: 1 | T10: 1 | U10: 1 | V10: 8
A11: 06. | B11: 1.4 | C11: 2.6 | D11: -1 | E11: -1.1 | F11: 65 | G11: 77 | H11: 6.9 | I11: 0.3 | J11: S | L11: 0.1 | M11: 1008.1 | N11: -2.3 | O11: 4 | P11: 1 | Q11: D | R11: 1 | T11: 1 | U11: 1 | V11: 8 | AA11: min <0,0°C | AB11: min <0-10,0°C | AE11: rel.Lf. 14h >=70% | AG11: rel.Lf. 14h <=40%
A12: 07. | B12: 1 | C12: 2.2 | D12: -0.1 | E12: -0.6 | F12: 77 | G12: 84 | H12: 7.6 | I12: 5.3 | J12: S;R | L12: . | M12: 1020.1 | N12: -1.6 | O12: 3 | P12: 0 | Q12: V | R12: 1 | T12: 1 | V12: 7 | AA12: =COUNTIF(D6:D15,"<0") -> 5 | AB12: =COUNTIF(D6:D15,"<=-10") -> 0 | AE12: =COUNTIF(F6:F15,">=70") -> 7 | AG12: =COUNTIF(F6:F15,"<=40") -> 0
A13: 08. | B13: 3.6 | C13: 7 | D13: 0.1 | E13: 0 | F13: 80 | G13: 89 | H13: 7.8 | I13: 1.6 | J13: R | L13: 0.5 | M13: 1023.3 | N13: 1.7 | O13: 2 | P13: 0 | Q13: V | R13: 1 | T13: 1 | V13: 6 | AA13: =COUNTIF(D18:D27,"<0") -> 8 | AB13: =COUNTIF(D18:D27,"<=-10") -> 0 | AE13: =COUNTIF(F18:F27,">=70") -> 9 | AG13: =COUNTIF(F18:F27,"<=40") -> 0
A14: 09. | B14: 7.1 | C14: 7.4 | D14: 6.7 | E14: 5.6 | F14: 80 | G14: 91 | H14: 8 | I14: 5 | J14: R | L14: . | M14: 1023.2 | N14: 5.6 | O14: 3 | R14: 1 | T14: 1 | V14: 7 | AA14: =COUNTIF(D30:D40,"<0") -> 3 | AB14: =COUNTIF(D30:D40,"<=-10") -> 0 | AE14: =COUNTIF(F30:F40,">=70") -> 7 | AG14: =COUNTIF(F30:F40,"<=40") -> 0
A15: 10. | B15: 7.6 | C15: 9.1 | D15: 6.8 | E15: 5.6 | F15: 91 | G15: 96 | H15: 7.8 | I15: 0.5 | J15: R | L15: 0.1 | M15: 1034.8 | N15: 7 | O15: 1 | R15: 1 | V15: 4
A16: Su | B16: =SUM(B6:B15) -> 31.8 | C16: =SUM(C6:C15) -> 55.4 | D16: 9.4 | E16: 0.1 | F16: XXX | G16: XXX | H16: =SUM(H6:H15) -> 69.9 | I16: =SUM(I6:I15) -> 21.5 | J16: XX | L16: =SUM(L6:L15) -> 3.3 | M16: =SUM(M6:M15) -> 10242.1 | N16: 11.6 | O16: 24 | P16: =COUNT(P6:P15) -> 3 | Q16: X | R16: =SUM(R6:R15) -> 8 | S16: =SUM(S6:S15) -> 0 | T16: 6 | U16: 2 | V16: XXX | AA16: ohne Sonne | AB16: Son. 0,1-0,9 | AC16: Son. >=10,0 | AE16: Sch. >=1 cm | AF16: Sch. >=3 cm | AG16: Sch. >=10 cm
A17: Mi | B17: =AVERAGE(B6:B15) -> 3.18 | C17: =AVERAGE(C6:C15) -> 5.54 | D17: 0.94 | E17: 0.01 | F17: XXX | G17: 87.2 | H17: 6.99 | I17: =I16/10 -> 2.15 | J17: XX | L17: =L16/10 -> 0.33 | M17: =AVERAGE(M6:M15) -> 1024.21 | N17: =AVERAGE(N6:N15) -> 1.16 | O17: 2.4 | P17: XXX | Q17: X | R17: XX | S17: XX | T17: XX | U17: XX | V17: =AVERAGE(V6:V15) -> 5.8 | AA17: =COUNTIF(L6:L15,".") -> 3 | AB17: =COUNTIF(L6:L15,"<1") -> 6 | AC17: =COUNTIF(L6:L15,">=10") -> 0 | AE17: =COUNTIF(P6:P15,">=1") -> 1 | AF17: =COUNTIF(P6:P15,">=3") -> 0 | AG17: =COUNTIF(P6:P15,">=10") -> 0
A18: 11. | B18: 4.9 | C18: 7.8 | D18: 1.1 | E18: 0 | F18: 90 | G18: 96 | H18: 4.8 | I18: . | L18: 1.9 | M18: 1034.9 | N18: 4.4 | O18: 1 | V18: 2 | AA18: =COUNTIF(L18:L27,".") -> 1 | AB18: =COUNTIF(L18:L27,"<1") -> 3 | AC18: =COUNTIF(L18:L27,">=10") -> 0 | AE18: =COUNTIF(P18:P27,">=1") -> 0 | AF18: =COUNTIF(P18:P27,">=3") -> 0 | AG18: =COUNTIF(P18:P27,">=10") -> 0
A19: 12. | B19: 0.6 | C19: 4.4 | D19: -0.9 | E19: -2.2 | F19: 93 | G19: 97 | H19: 1.7 | I19: . | L19: 1.9 | M19: 1031.7 | N19: 0.2 | O19: 1 | V19: 2 | AA19: =COUNTIF(L30:L40,".") -> 4 | AB19: =COUNTIF(L30:L40,"<1") -> 5 | AC19: =COUNTIF(L30:L40,">=10") -> 0 | AE19: =COUNTIF(P30:P40,">=1") -> 0 | AF19: =COUNTIF(P30:P40,">=3") -> 0 | AG19: =COUNTIF(P30:P40,">=10") -> 0
A20: 13. | B20: -0.6 | C20: 2.8 | D20: -2.7 | E20: -3.3 | F20: 93 | G20: 97 | H20: 0.5 | I20: . | L20: 1.8 | M20: 1026.4 | N20: -1 | O20: 1 | V20: 2
A21: 14. | B21: -0.1 | C21: 3.3 | D21: -3.2 | E21: -4.4 | F21: 87 | G21: 94 | H21: 2.8 | I21: 0.9 | J21: E | L21: 1.5 | M21: 1027 | N21: -1 | O21: 1 | R21: 1 | V21: 5 | AA21: Max TT | AB21: Max TxTx | AC21: Min TgTg | AE21: Max RR
A22: 15. | B22: 3.4 | C22: 6.7 | D22: -0.9 | E22: -2.8 | F22: 76 | G22: 89 | H22: 5.9 | I22: 0.2 | J22: R | L22: 0.3 | M22: 1030.6 | N22: 1.8 | O22: 1 | R22: 1 | V22: 5 | AA22: =MAX(B6:B15,B18:B27,B30:B40) -> 7.7 | AB22: =MAX(C6:C15,C18:C27,C30:C40) -> 10.9 | AC22: =MIN(E6:E15,E18:E27,E30:E40) -> -5 | AE22: =MAX(I6:I15,I18:I27,I30:I40) -> 5.6
A23: 16. | B23: 2.9 | C23: 7.8 | D23: -0.4 | E23: -2.2 | F23: 65 | G23: 85 | H23: 1.5 | I23: . | L23: 1.3 | M23: 1030 | N23: 0.5 | O23: 1 | V23: 5 | AA23: Min TT | AB23: Min TnTn | AC23: Min U14 | AE23: Max SS
A24: 17. | B24: 0.9 | C24: 4.1 | D24: -1.3 | E24: -3.3 | F24: 77 | G24: 86 | H24: 3.6 | I24: . | L24: 1.3 | M24: 1028 | N24: -1.1 | O24: 2 | V24: 4 | AA24: =MIN(B6:B15,B18:B27,B30:B40) -> -0.6 | AB24: =MIN(D6:D15,D18:D27,D30:D40) -> -4.2 | AC24: =MIN(F6:F15,F18:F27,F30:F40) -> 51 | AE24: =MAX(P6:P15,P18:P27,P30:P40) -> 1
A25: 18. | B25: -0.6 | C25: 2.6 | D25: -2.4 | E25: -4.4 | F25: 83 | G25: 89 | H25: 6.5 | I25: . | L25: 0.4 | M25: 1024.7 | N25: -2.1 | O25: 2 | V25: 5
A26: 19. | B26: -0.1 | C26: 1.9 | D26: -1.7 | E26: -2.2 | F26: 80 | G26: 87 | H26: 7.5 | I26: 0 | L26: 0.1 | M26: 1015.3 | N26: -2 | O26: 3 | T26: 1 | V26: 6
A27: 20. | B27: 1.8 | C27: 3.8 | D27: 0.7 | E27: -0.6 | F27: 87 | G27: 91 | H27: 6.8 | I27: 1.5 | J27: R | L27: . | M27: 1023.8 | N27: 0.4 | O27: 2 | R27: 1 | V27: 4
A28: Su | B28: =SUM(B18:B27) -> 13.1 | C28: =SUM(C18:C27) -> 45.2 | D28: -11.7 | E28: -25.4 | F28: XXX | G28: XXX | H28: =SUM(H18:H27) -> 41.6 | I28: =SUM(I18:I27) -> 2.6 | J28: XX | L28: =SUM(L18:L27) -> 10.5 | M28: =SUM(M18:M27) -> 10272.4 | N28: 0.1 | O28: 15 | P28: =COUNT(P18:P27) -> 0 | Q28: X | R28: =SUM(R18:R27) -> 3 | S28: =SUM(S18:S27) -> 0 | T28: 1 | U28: 0 | V28: XXX
A29: Mi | B29: =AVERAGE(B18:B27) -> 1.31 | C29: =AVERAGE(C18:C27) -> 4.52 | D29: -1.17 | E29: -2.54 | F29: 83.1 | G29: 91.1 | H29: 4.16 | I29: =I28/10 -> 0.26 | J29: XX | L29: =L28/10 -> 1.05 | M29: =AVERAGE(M18:M27) -> 1027.24 | N29: =AVERAGE(N18:N27) -> 0.01 | O29: 1.5 | P29: XXX | Q29: X | R29: XX | S29: XX | T29: XX | U29: XX | V29: =AVERAGE(V18:V27) -> 4
A30: 21. | B30: 1.4 | C30: 4.4 | D30: -2.2 | E30: -3.9 | F30: 77 | G30: 85 | H30: 4.6 | I30: 0.1 | J30: R | L30: 0.7 | M30: 1030.2 | N30: -0.7 | O30: 2 | R30: 1 | T30: 1 | V30: 6
A31: 22. | B31: 6.2 | C31: 10.9 | D31: 2.4 | E31: 0.6 | F31: 67 | G31: 82 | H31: 7.1 | I31: 0.7 | J31: R | L31: . | M31: 1020.7 | N31: 3.2 | O31: 3 | R31: 1 | V31: 5
A32: 23. | B32: 7.7 | C32: 10.6 | D32: 5.5 | E32: 3.3 | F32: 68 | G32: 81 | H32: 5.9 | I32: . | L32: 0.6 | M32: 1017.8 | N32: 4.6 | O32: 2 | V32: 5
A33: 24. | B33: 4.8 | C33: 7.6 | D33: 3.6 | E33: 2.3 | F33: 79 | G33: 85 | H33: 7 | I33: . | L33: . | M33: 1006.8 | N33: 2.5 | O33: 3 | T33: 1 | V33: 6
A34: 25. | B34: 6.2 | C34: 7.4 | D34: 5.3 | E34: 3.9 | F34: 79 | G34: 85 | H34: 7.8 | I34: 0 | L34: . | M34: 996.8 | N34: 3.9 | O34: 2 | T34: 1 | V34: 6
A35: 26. | B35: 5.9 | C35: 9.8 | D35: 3.7 | E35: 1.7 | F35: 80 | G35: 91 | H35: 7.2 | I35: . | L35: 0.3 | M35: 996.1 | N35: 4.5 | O35: 1 | V35: 3
A36: 27. | B36: 5.9 | C36: 7.3 | D36: 4.4 | E36: 1.7 | F36: 72 | G36: 83 | H36: 4.8 | I36: . | L36: 1.2 | M36: 1007 | N36: 3.2 | O36: 2 | T36: 1 | V36: 6
A37: 28. | B37: 4.9 | C37: 6.1 | D37: 3.8 | E37: 1.7 | F37: 72 | G37: 81 | H37: 5.6 | I37: 0.8 | J37: R | L37: . | M37: 1006.3 | N37: 1.9 | O37: 3 | R37: 1 | T37: 1 | V37: 6
A38: 29. | B38: 5.3 | C38: 8 | D38: 3.9 | E38: 2.8 | F38: 67 | G38: 82 | H38: 5.8 | I38: . | L38: 0.5 | M38: 1015.5 | N38: 2.3 | O38: 2 | T38: 1 | V38: 6
A39: 30. | B39: 1.5 | C39: 6.1 | D39: -0.8 | E39: -3.3 | F39: 65 | G39: 86 | H39: 0.7 | I39: . | L39: 1.2 | M39: 1027.8 | N39: -0.6 | O39: 1 | V39: 4
A40: 31. | B40: 0 | C40: 4.7 | D40: -2.3 | E40: -5 | F40: 79 | G40: 91 | H40: 2.3 | I40: . | L40: 0.7 | M40: 1023 | N40: -1.4 | O40: 2 | V40: 4
A41: Su | B41: =SUM(B30:B40) -> 49.8 | C41: =SUM(C30:C40) -> 82.9 | D41: =SUM(D30:D40) -> 27.3 | E41: =SUM(E30:E40) -> 5.8 | F41: XXX | G41: =SUM(G30:G40) -> 932 | H41: =SUM(H30:H40) -> 58.8 | I41: =SUM(I30:I40) -> 1.6 | J41: XX | L41: =SUM(L30:L40) -> 5.2 | M41: =SUM(M30:M40) -> 11148 | N41: =SUM(N30:N40) -> 23.4 | O41: =SUM(O30:O40) -> 23 | P41: =COUNT(P30:P40) -> 0 | Q41: X | R41: =SUM(R30:R40) -> 3 | S41: =SUM(S30:S40) -> 0 | T41: =SUM(T30:T40) -> 6 | U41: =SUM(U30:U40) -> 0 | V41: XXX
A42: Mi | B42: =AVERAGE(B30:B40) -> 4.527272727 | C42: =AVERAGE(C30:C40) -> 7.536363636 | D42: =AVERAGE(D30:D40) -> 2.481818182 | E42: =AVERAGE(E30:E40) -> 0.5272727273 | F42: XXX | G42: =AVERAGE(G30:G40) -> 84.72727273 | H42: =AVERAGE(H30:H40) -> 5.345454545 | I42: XXXXX | J42: XX | L42: XXXX | M42: =AVERAGE(M30:M40) -> 1013.454545 | N42: =AVERAGE(N30:N40) -> 2.127272727 | O42: =AVERAGE(O30:O40) -> 2.090909091 | P42: XXX | Q42: X | R42: XX | S42: XX | T42: XX | U42: XX | V42: =AVERAGE(V30:V40) -> 5.181818182
A43: MSu | B43: =SUM(B16+B28+B41) -> 94.7 | C43: =SUM(C16+C28+C41) -> 183.5 | D43: =SUM(D16+D28+D41) -> 25 | E43: =SUM(E16+E28+E41) -> -19.5 | F43: XXX | G43: XXX, | H43: =SUM(H16+H28+H41) -> 170.3 | I43: =SUM(I16+I28+I41) -> 25.7 | J43: XX | L43: =SUM(L16+L28+L41) -> 19 | M43: =SUM(M16+M28+M41) -> 31662.5 | N43: =SUM(N16+N28+N41) -> 35.1 | O43: XXX | P43: =SUM(P16+P28+P41) -> 3 | Q43: X | R43: =SUM(R16+R28+R41) -> 14 | S43: =SUM(S16+S28+S41) -> 0 | T43: =SUM(T16+T28+T41) -> 13 | U43: =SUM(U16+U28+U41) -> 2 | V43: XXX
A44: MMi | B44: =AVERAGE(B6:B15,B18:B27,B30:B40) -> 3.05483871 | C44: =AVERAGE(C6:C15,C18:C27,C30:C40) -> 5.919354839 | D44: =AVERAGE(D6:D15,D18:D27,D30:D40) -> 0.8064516129 | E44: =AVERAGE(E6:E15,E18:E27,E30:E40) -> -0.6290322581 | F44: XXX | G44: =AVERAGE(G6:G15,G18:G27,G30:G40) -> 87.58064516 | H44: =AVERAGE(H6:H15,H18:H27,H30:H40) -> 5.493548387 | I44: XXXXX | J44: XX | L44: XXXX | M44: =AVERAGE(M6:M15,M18:M27,M30:M40) -> 1021.370968 | N44: =AVERAGE(N6:N15,N18:N27,N30:N40) -> 1.132258065 | O44: =AVERAGE(O6:O15,O18:O27,O30:O40) -> 2 | P44: XXX | Q44: X | R44: XX | S44: XX | T44: XX | U44: XX | V44: =AVERAGE(V17,V29,V42) -> 4.993939394
B46: Norm | C46: % v N.- | D46: Abw. | E46: Zahl der Tage | L46: Niederschlag mm | P46: Sonnensch.-dauer Std
B47: wert | C47: wert | D47: K | E47: Max.d.Lufttemp.°C | L47: >/= 0,1 | O47: =SUM(AE7:AE9) -> 14 | P47: ohne Sonne | V47: 8
A48: TTT | B48: 1.1 | C48: XXXX | D48: =SUM(B44-B48) -> 1.95483871 | E48: Tropentag/Hitzetag | I48: =SUM(AA7:AA9) -> 0 | L48: >/= 1,0 | O48: =SUM(AF7:AF9) -> 6 | P48: 0,1 bis 0,9 | V48: 14
A49: RRR | B49: 47 | C49: =SUM(I43*100/B49) -> 54.68085106 | D49: XXXX | E49: Sommertag | I49: =SUM(AB7:AB9) -> 0 | L49: >/= 3,0 | O49: =SUM(AG7:AG9) -> 4 | P49: >/= 10,0 | V49: =SUM(AC17:AC19) -> 0
A50: sss | B50: 52 | C50: =SUM(L43*100/B50) -> 36.53846154 | D50: XXXX | E50: Eistag | I50: =SUM(AC7:AC9) -> 0 | L50: >/=10,0 | O50: =SUM(AH7:AH9) -> 0 | P50: Schneedecke cm
A51: astr. | D51: XXXX | E51: Polartag | I51: 0 | L51: >/= 20,0 | O51: 0 | P51: >/= 1 | V51: =SUM(AE17:AE19) -> 1
A52: mgl. | B52: 248 | C52: =SUM(L43*100/B52) -> 7.661290323 | D52: XXXX | E52: Min.d.Lufttemp.°C | L52: Rel. Luftfeuchte 14 Uhr | P52: >/= 3 | V52: =SUM(AF17:AF19) -> 0
A53: sss | D53: XXXX | E53: Frosttag | I53: =SUM(AA12:AA14) -> 16 | L53: >/=70% | O53: =SUM(AE12:AE14) -> 23 | P53: >/= 10 | V53: =SUM(AG17:AG19) -> 0
E54: Tropennacht | I54: 0 | L54: </=40% | O54: =SUM(AG12:AG14) -> 0
E57: Unter "Tage mit" sind die Angaben Bft 6 & Bft 8 nicht 10 min. - Mittel sonder 2,5 s - Werte.
E58: Wenn ein Wert auch mit einem 10 min. - Wert erreicht wird, erfolgt eine rote Markierung.
E59: Dies gilt rückwirkend auf November 2012.
F113: Tage mit Bft 6 /8 eigentlich in 10 min. - Mittel

Sheet Sichtst.
E1: Sichtweitenstatistik
B5: Wetterstation: Köttewitz | F5: Monat: | G5: Dezember | K5: Jahr: | L5: 2013
A7: Dat. | B7: Nebeldauer | C7: Nebel | D7: Dunst | E7: Sicht | F7: Sicht | G7: Sicht | H7: Sicht
B8: in St. u. Min. | E8: mittel | F8: normal | G8: gut | H8: sehr gut
A9: 01. | B9: - | C9: - | D9: - | E9: 1 | F9: 1 | G9: - | H9: - | N9: =IF(ISNUMBER(B9),B9*24," ") ->  | O9: =IF(ISNUMBER(N9),IF(N9<1,1," ")," ") ->  | P9: =IF(ISNUMBER(N9),IF(N9<8,2," ")," ") ->  | Q9: =IF(ISNUMBER(N9),IF(N9<24,3," ")," ") ->  | R9: =MIN(O9:Q9) -> 0
A10: 02. | B10: - | C10: =IF(R10=1,1,"-") -> - | D10: - | E10: - | F10: 1 | G10: - | H10: - | R10: 0
A11: 03. | B11: - | C11: - | D11: - | E11: - | F11: 1 | G11: - | H11: - | R11: 0
A12: 04. | B12: - | C12: - | D12: - | E12: - | F12: 1 | G12: - | H12: - | R12: 0
A13: 05. | B13: - | C13: - | D13: - | E13: - | F13: 1 | G13: - | H13: - | R13: 0
A14: 06. | B14: 00:40:00 | C14: 1 | D14: 1 | E14: 1 | F14: 1 | G14: - | H14: - | N14: 0.6666666667 | O14: 1 | P14: 2 | Q14: 3 | R14: 1
A15: 07. | B15: - | C15: - | D15: - | E15: 1 | F15: 1 | G15: - | H15: - | R15: 0
A16: 08. | B16: - | C16: - | D16: 1 | E16: 1 | F16: 1 | G16: - | H16: - | R16: 0
A17: 09. | B17: - | C17: - | D17: 1 | E17: - | F17: - | G17: - | H17: - | R17: 0
A18: 10. | B18: - | C18: - | D18: 1 | E18: 1 | F18: - | G18: - | H18: - | R18: 0
A19: 11. | B19: 01:50:00 | C19: 1 | D19: 1 | E19: 1 | F19: 1 | G19: - | H19: - | N19: 1.833333333 | P19: 2 | Q19: 3 | R19: 2
A20: 12. | B20: - | C20: - | D20: - | E20: - | F20: 1 | G20: - | H20: - | R20: 0
A21: 13. | B21: - | C21: - | D21: - | E21: - | F21: 1 | G21: - | H21: - | R21: 0
A22: 14. | B22: - | C22: - | D22: - | E22: - | F22: 1 | G22: - | H22: - | R22: 0
A23: 15. | B23: - | C23: - | D23: - | E23: - | F23: 1 | G23: - | H23: - | R23: 0
A24: 16. | B24: - | C24: - | D24: - | E24: - | F24: 1 | G24: - | H24: - | R24: 0
A25: 17. | B25: - | C25: - | D25: - | E25: 1 | F25: 1 | G25: - | H25: - | R25: 0
A26: 18. | B26: - | C26: - | D26: - | E26: - | F26: 1 | G26: - | H26: - | R26: 0
A27: 19. | B27: - | C27: - | D27: - | E27: 1 | F27: 1 | G27: - | H27: - | R27: 0
A28: 20. | B28: - | C28: - | D28: 1 | E28: 1 | F28: 1 | G28: - | H28: - | R28: 0
A29: 21. | B29: - | C29: - | D29: - | E29: - | F29: 1 | G29: - | H29: - | R29: 0
A30: 22. | B30: - | C30: - | D30: - | E30: - | F30: 1 | G30: - | H30: - | R30: 0
A31: 23. | B31: - | C31: - | D31: - | E31: - | F31: 1 | G31: 1 | H31: - | R31: 0
A32: 24. | B32: - | C32: - | D32: - | E32: - | F32: 1 | G32: - | H32: - | R32: 0
A33: 25. | B33: - | C33: - | D33: - | E33: - | F33: 1 | G33: - | H33: - | R33: 0
A34: 26. | B34: - | C34: - | D34: - | E34: - | F34: 1 | G34: - | H34: - | R34: 0
A35: 27. | B35: - | C35: - | D35: - | E35: - | F35: 1 | G35: 1 | H35: - | R35: 0
A36: 28. | B36: - | C36: - | D36: - | E36: - | F36: 1 | G36: - | H36: - | R36: 0
A37: 29. | B37: - | C37: - | D37: - | E37: - | F37: 1 | G37: 1 | H37: 1 | R37: 0
A38: 30. | B38: - | C38: - | D38: - | E38: - | F38: 1 | G38: 1 | H38: - | R38: 0
A39: 31. | B39: - | C39: - | D39: - | E39: - | F39: 1 | G39: - | H39: - | R39: 0
A40: Su. | B40: =SUM(B9:B39) -> 02:30:00 | C40: =SUM(C9:C39) -> 2 | D40: =SUM(D9:D39) -> 6 | E40: =SUM(E9:E39) -> 9 | F40: 29 | G40: 4 | H40: 1
B42: Anzahl der Nebeltage : | E42: =SUM(C40) -> 2
B43: Anzahl der Tage Sicht >= 50 km : | E43: =SUM(G40) -> 4

Sheet Monatsdiagramm
A1: Klimadiagramm | C1: Wetterstation Köttewitz | I1: (213 m ü. NHN)
A3: Dezember 2013
C5: aktuell | D5: langj. Mittel | E5: Abw. vom lj. Mittel
B6: höchste Temperatur (°C): | C6: =MAX('Daten für Diagr.'!C2:C29) -> 10.9 | D6: am | E6: 2013-12-22
B7: mittlere Temperatur (°C): | C7: ='Daten für Diagr.'!B33 -> 3.05483871 | D7: =Kurztabelle!B48 -> 1.1 | E7: =C7-D7 -> 1.95483871 | F7: K
B8: tiefste Temperatur (°C): | C8: =MIN('Daten für Diagr.'!D2:D32) -> -4.2 | D8: am | E8: 2013-12-04
B9: Niederschlagshöhe (mm): | C9: =Kurztabelle!I43 -> 25.7 | D9: =Kurztabelle!B49 -> 47 | E9: =100/D9*C9 -> 54.68085106 | F9: %
B10: Sonnenscheindauer (Std.)*: | C10: =Kurztabelle!L43 -> 19 | D10: =Kurztabelle!B50 -> 52 | E10: =100/D10*C10 -> 36.53846154 | F10: %
A66: *Die Wetterstation kann, durch geographische Hindernisse, nicht die maximal mögliche Sonnenscheindauer aufzeichnen. Es gilt ein Übergangsprozentsatz von: Okt - Feb 40 %; Mär 65 %; Apr & Sep 80 %; Mai - August 90 %.
A67: Diese Werte entsprechend annähernd 100 % (Normalwert Köttewitz). Nach 10 Jahren erfolgt die Umstellung des Prozentsatzes nach der örtlichen Aufzeichnung.

Sheet Daten für Diagr.
B1: Td | C1: Tmax | D1: Tmin | E1: RR | F1: Schnee | G1: Sonne | H1: Luftdr. | I1: MWT | J1: GWL | K1: Name | L1: Sonstiges
A2: 2013-12-01 | B2: 4.8 | C2: 6.8 | D2: 3.2 | E2: 0.2 | G2: 0.2 | H2: 1026.2 | I2: 2 | J2: HB | K2: H Ulrike
A3: 2013-12-02 | B3: 3.2 | C3: 5.8 | D3: -1.7 | G3: 1.3 | H3: 1034.5 | I3: 1.95 | J3: BM
A4: 2013-12-03 | B4: 0.1 | C4: 4.9 | D4: -2.2 | G4: 0.8 | H4: 1031 | I4: 1.9
A5: 2013-12-04 | B5: -0.4 | C5: 3.2 | D5: -4.2 | E5: 3 | G5: 0.3 | H5: 1024.2 | I5: 1.85 | J5: NWz | K5: T Xaver
A6: 2013-12-05 | B6: 3.4 | C6: 6.4 | D6: 1.8 | E6: 5.6 | F6: 0 | H6: 1016.7 | I6: 1.8 | K6: "Orkan Xaver"
A7: 2013-12-06 | B7: 1.4 | C7: 2.6 | D7: -1 | E7: 0.3 | F7: 1 | H7: 1008.1 | I7: 1.75 | L7: Von 17:30 Uhr - 18:09 Uhr leichter Nebel. Von 18:30 Uhr - 19:59 Uhr mäßiger Dunst. Von 17:30 Uhr - 18:09 Uhr; 18:30 Uhr - 19:59 Uhr Sichteinschränkung durch Niederschlag (Schneeverwehung).
A8: 2013-12-07 | B8: 1 | C8: 2.2 | D8: -0.1 | E8: 5.3 | F8: 0 | H8: 1020.1 | I8: 1.7 | J8: NWa | K8: H Varnia
A9: 2013-12-08 | B9: 3.6 | C9: 7 | D9: 0.1 | E9: 1.6 | F9: 0 | G9: 0.5 | H9: 1023.3 | I9: 1.65
A10: 2013-12-09 | B10: 7.1 | C10: 7.4 | D10: 6.7 | E10: 5 | H10: 1023.2 | I10: 1.6 | J10: BM | L10: Von 19:10 Uhr - 23:59 Uhr mäßiger Dunst.
A11: 2013-12-10 | B11: 7.6 | C11: 9.1 | D11: 6.8 | E11: 0.5 | G11: 0.1 | H11: 1034.8 | I11: 1.55 | J11: HM | L11: Von 07:10 Uhr - 10:29 Uhr starker Dunst. Von 00:00 Uhr - 07:09 Uhr; 10:30 Uhr - 11:09 Uhr; 17:30 Uhr - 19:29 Uhr mäßiger Dunst.
A12: 2013-12-11 | B12: 4.9 | C12: 7.8 | D12: 1.1 | G12: 1.9 | H12: 1034.9 | I12: 1.5 | L12: Von 21:10 Uhr - 22:29 Uhr mäßiger Nebel. Von 20:50 Uhr - 20:09 Uhr; 22:30 Uhr - 22:39 Uhr leichter Nebel. Von 20:30 Uhr - 20:49 Uhr; 22:40 Uhr - 22:49 Uhr starker Dunst. Von 20:10 Uhr - 20:29 Uhr; 22:50 Uhr - 22:59 Uhr mäßiger Dunst. Von 20:00 Uhr - 20:09 Uhr; 23:00 Uhr - 23:09 Uhr leichter Dunst.
A13: 2013-12-12 | B13: 0.6 | C13: 4.4 | D13: -0.9 | G13: 1.9 | H13: 1031.7 | I13: 1.45
A14: 2013-12-13 | B14: -0.6 | C14: 2.8 | D14: -2.7 | G14: 1.8 | H14: 1026.4 | I14: 1.4 | L14: Eisnadeln.
A15: 2013-12-14 | B15: -0.1 | C15: 3.3 | D15: -3.2 | E15: 0.9 | G15: 1.5 | H15: 1027 | I15: 1.35 | L15: Eisnadeln.
A16: 2013-12-15 | B16: 3.4 | C16: 6.7 | D16: -0.9 | E16: 0.2 | G16: 0.3 | H16: 1030.6 | I16: 1.3
A17: 2013-12-16 | B17: 2.9 | C17: 7.8 | D17: -0.4 | G17: 1.3 | H17: 1030 | I17: 1.25 | J17: SEa
A18: 2013-12-17 | B18: 0.9 | C18: 4.1 | D18: -1.3 | G18: 1.3 | H18: 1028 | I18: 1.2
A19: 2013-12-18 | B19: -0.6 | C19: 2.6 | D19: -2.4 | G19: 0.4 | H19: 1024.7 | I19: 1.15
A20: 2013-12-19 | B20: -0.1 | C20: 1.9 | D20: -1.7 | G20: 0.1 | H20: 1015.3 | I20: 1.1
A21: 2013-12-20 | B21: 1.8 | C21: 3.8 | D21: 0.7 | H21: 1023.8 | I21: 1.05 | K21: H Xenia | L21: Von 15:30 Uhr - 18:49 Uhr mäßiger Dunst. Von 14:20 Uhr - 15:29 Uhr leichter Dunst.
A22: 2013-12-21 | B22: 1.4 | C22: 4.4 | D22: -2.2 | E22: 0.1 | G22: 0.7 | H22: 1030.2 | I22: 1
A23: 2013-12-22 | B23: 6.2 | C23: 10.9 | D23: 2.4 | E23: 0.7 | H23: 1020.7 | I23: 0.95 | J23: SWz | K23: T Dirk
A24: 2013-12-23 | B24: 7.7 | C24: 10.6 | D24: 5.5 | H24: 1017.8 | I24: 0.9
A25: 2013-12-24 | B25: 4.8 | C25: 7.6 | D25: 3.6 | H25: 1006.8 | I25: 0.85
A26: 2013-12-25 | B26: 6.2 | C26: 7.4 | D26: 5.3 | H26: 996.8 | I26: 0.8
A27: 2013-12-26 | B27: 5.9 | C27: 9.8 | D27: 3.7 | G27: 0.3 | H27: 996.1 | I27: 0.75 | K27: T Erich
A28: 2013-12-27 | B28: 5.9 | C28: 7.3 | D28: 4.4 | G28: 1.2 | H28: 1007 | I28: 0.7
A29: 2013-12-28 | B29: 4.9 | C29: 6.1 | D29: 3.8 | E29: 0.8 | H29: 1006.3 | I29: 0.65 | J29: TrM
A30: 2013-12-29 | B30: 5.3 | C30: 8 | D30: 3.9 | H30: 1015.5 | I30: 0.6
A31: 2013-12-30 | B31: 1.5 | C31: 6.1 | D31: -0.8 | G31: 1.2 | H31: 1027.8 | I31: 0.55 | J31: HM | K31: H Ylonka
A32: 2013-12-31 | B32: 0 | C32: 4.7 | D32: -2.3 | G32: 0.7 | H32: 1023 | I32: 0.5
A33: Durchschnitt | B33: =AVERAGE(B2:B32) -> 3.05483871 | C33: =AVERAGE(C2:C32) -> 5.919354839 | D33: =AVERAGE(D2:D32) -> 0.8064516129 | H33: =AVERAGE(H2:H32) -> 1021.370968 | I33: =AVERAGE(I2:I32) -> 1.25
A34: Mittel | B34: 1.1 | E34: 47 | F34: - | G34: 52 | H34: 1016.8
A90: 1
A91: 2
A92: 3
A93: 4
A94: 5
A95: 6
A96: 7
A97: 8
A98: 9
A99: 10
A100: 11
A101: 12
A102: 13
A103: 14
A104: 15
A105: 16
A106: 17
A107: 18
A108: 19
A109: 20
A110: 21
A111: 22
A112: 23
A113: 24
A114: 25
A115: 26
A116: 27
A117: 28
A118: 29
A119: 30
A120: 31

Sheet Erdbodentem.
E1: Erdbodentemperatur
B5: Wetterstation: Köttewitz | F5: Monat: | G5: Dezember | K5: Jahr: | L5: 2013
A7: Dat. | B7: 7 Uhr | C7: 8 Uhr | D7: 12 Uh | E7: 13 Uhr | F7: 20 Uhr | H7: NN
A9: 01. | B9: - | D9: 4,8 °C/4,0 °C/6,1 °C | F9: 4,8 °C/4,8 °C/6,2 °C | H9: t
A10: 02. | B10: 4,5 °C/4,5 °C/6,2 °C | D10: - | F10: 2,6 °C/3,8 °C/6,4 °C | H10: n
A11: 03. | B11: 1,1 °C/1,6 °C/5,9 °C | D11: - | F11: 1,1 °C/2,3 °C/5,5 °C | H11: n
A12: 04. | B12: 0,5 °C/1,7 °C/5,4 °C | D12: - | F12: 0,5 °C/1,2 °C/5,7 °C | H12: t
A13: 05. | B13: 1,0 °C/1,8 °C/5,0 °C | D13: - | F13: - | H13: t
A14: 06. | B14: 1,1 °C/1,8 °C/4,6 °C | D14: - | F14: 1,0 °C/1,8 °C/4,5 °C | H14: t
A15: 07. | B15: 1,1 °C/1,8 °C/4,5 °C | D15: 1,5 °C/1,8 °C/4,5 °C | F15: 1,1 °C/1,8 °C/4,5 °C | H15: t
A16: 08. | B16: 1,2 °C/1,9 °C/4,4 °C | D16: - | F16: - | H16: t
A17: 09. | B17: 4,5 °C/3,9 °C/4,5 °C | D17: - | F17: 5,4 °C/5,0 °C/5,3 °C | H17: t
A18: 10. | B18: 5,9 °C/5,4 °C/5,8 °C | D18: - | F18: 5,8 °C/5,2 °C/5,4 °C | H18: t
A19: 11. | B19: 5,1 °C/5,5 °C/6,4 °C | D19: - | F19: 3,8 °C/4,5 °C/6,4 °C | H19: n
A20: 12. | B20: 2,0 °C/3,4 °C/6,4 °C | D20: - | F20: 1,7 °C/3,6 °C/5,6 °C | H20: h
A21: 13. | B21: 0,8 °C/2,0 °C/5,4 °C | D21: - | F21: 0,9 °C/1,8 °C/5,3 °C | H21: h
A22: 14. | B22: 0,2 °C/1,5 °C/4,9 °C | D22: 0,1 °C/1,2 °C/5,0 °C | F22: 0,2 °C/1,1 °C/4,6 °C | H22: n
A23: 15. | B23: 0,2 °C/1,2 °C/4,5 °C | D23: 0,5 °C/1,1 °C/4,4 °C | F23: 0,7 °C/1,1 °C/4,4 °C | H23: n
A24: 16. | B24: - | D24: - | F24: - | H24: -
A25: 17. | B25: 0,6 °C/1,1 °C/4,3 °C | D25: - | F25: 0,8 °C/1,4 °C/4,2 °C | H25: n
A26: 18. | B26: 0,5 °C/1,2 °C/4,1 °C | D26: - | F26: - | H26: n
A27: 19. | B27: 0,2 °C/0,8 °C/3,6 °C | D27: - | F27: 0,5 °C/1,0 °C/3,5 °C | H27: t
A28: 20. | B28: 0,5 °C/1,0 °C/3,6 °C | D28: - | F28: 0,5 °C/1,0 °C/3,6 °C | H28: t
A29: 21. | B29: 0,5 °C/0,9 °C/3,6 °C | D29: - | F29: 0,5 °C/0,9 °C/3,6 °C | H29: n
A30: 22. | B30: 0,5 °C/1,0 °C/3,7 °C | D30: 0,5 °C/1,1 °C/3,8 °C | F30: - | H30: n
A31: 23. | B31: 2,6 °C/2,4 °C/3,8 °C | D31: 3,8 °C/2,9 °C/4,0 °C | F31: - | H31: n
A32: 24. | B32: 2,2 °C/2,1 °C/4,2 °C | D32: 3,1 °C/2,5 °C/4,2 °C | F32: - | H32: t
A33: 25. | B33: - | D33: - | F33: - | H33: -
A34: 26. | B34: - | D34: - | F34: - | H34: -
A35: 27. | B35: 4,4 °C/4,3 °C/5,3 °C | D35: 4,8 °C/4,6 °C/5,3 °C | F35: 3,0 °C/4,4 °C/5,3 °C | H35: n
A36: 28. | B36: - | D36: - | F36: 3,5 °C/3,5 °C/5,1 °C | H36: t
A37: 29. | B37: 3,9 °C/3,9 °C/5,1 °C | D37: - | F37: 3,2 °C/3,6 °C/5,9 °C | H37: n
A38: 30. | B38: 1,1 °C/2,2 °C/5,2 °C | D38: 3,2 °C/2,9 °C/5,1 °C | F38: 1,1 °C/1,9 °C/5,0 °C | H38: h
A39: 31. | B39: 0,4 °C/1,8 °C/4,6 °C | D39: 0,6 °C/1,6 °C/4,6 °C | F39: - | H39: n
B41: Temperatur - 10 cm/Temperatur - 20 cm/Temperatur -50 cm
